Cogmind - Beta 17 @@@ ROGUE MODE // 2026.08.06 @ 21:43:09 Player: 4R-ZE3 Result: Destroyed by S-10 Pest with Light Assault Rifle Performance ------------- Evolutions (0) 0 Regions Visited (2) 400 Robots Destroyed (32) 160 Value Destroyed (906) 906 Prototype IDs (0) 0 Alien Tech Used (0) 0 Bonus (0) 0 TOTAL SCORE: 1466 Bonus ------- None Cogmind --------- Core Integrity 0/250 Matter 254/300 Energy 265/265 System Corruption 0% Temperature Cool (0) Movement Treading (240) Ox1 Location -10/Subcaves Parts ------- > --- POWER (1) -------- Reinforced Ion Engine > --- PROPULSION (2) --- Light Treads Light Treads > --- UTILITY (2) ------ Large Storage Unit Hardened Light Armor Plating > --- WEAPON (2) ------- Subdweller Machine Gun Subdweller Machine Gun > --- INVENTORY (15) --- Reinforced Ion Engine Subdweller Power Source Subdweller Monowheel Subdweller Monowheel Subdweller Optics Subdweller Optics Hardened Light Armor Plating Hacking Suite Subdweller Beam Cannon Autogun Autogun Autogun Grenade Launcher Mining Claw Peak State ------------ > --- POWER ------------ Reinforced Ion Engine > --- PROPULSION ------- Light Treads Light Treads > --- UTILITY ---------- Large Storage Unit Hardened Light Armor Plating > --- WEAPON ----------- Autogun Autogun > --- INVENTORY -------- Reinforced Ion Engine Light Treads Light Treads Aluminum Leg Subdweller Monowheel Subdweller Optics Hardened Light Armor Plating Hacking Suite Subdweller Beam Cannon Autogun Autogun Grenade Launcher Mining Claw [Rating: 13] Favorites ----------- Power Reinforced Ion Engine Engine Reinforced Ion Engine Propulsion Light Treads Treads Light Treads Utility Large Storage Unit Device Heat Sink Storage Large Storage Unit Processor Terrain Scan Processor Protection Hardened Light Armor Plating Weapon Autogun Energy Gun Medium Laser Ballistic Gun Autogun Launcher Grenade Launcher Slashing Weapon Mining Claw Build | -11 -10 -10 ------- Run | Yrd Mat Sub Slots Evolved . | . . . Power . | . . . Propulsion . | . . . Utility . | . . . Weapon . | . . . Parts Attached 21 | 6 7 8 Power 2 | 1 1 . Engine 2 | 1 1 . Core . | . . . Reactor . | . . . Propulsion 5 | 2 1 2 Treads 5 | 2 1 2 Leg . | . . . Wheel . | . . . Hover . | . . . Flight . | . . . Utility 5 | 1 2 2 Device 1 | . . 1 Storage 2 | 1 1 . Processor 1 | . 1 . Hackware . | . . . Protection 1 | . . 1 Artifact . | . . . Weapon 9 | 2 3 4 Energy Gun 2 | 2 . . Energy Cannon . | . . . Ballistic Gun 5 | . 2 3 Ballistic Cannon . | . . . Launcher 1 | . 1 . Special Weapon . | . . . Impact Weapon . | . . . Slashing Weapon 1 | . . 1 Piercing Weapon . | . . . Special Melee Weapon . | . . . Unidentified Prototypes . | . . . Parts Lost 4 | . 1 3 Power . | . . . Propulsion 3 | . 1 2 Utility . | . . . Weapon 1 | . . 1 Highest Loss Streak 2 | . 1 2 To Critical Strikes . | . . . Average Backups 12 | . 8 14 Power 1 | . 1 1 Propulsion 2 | . 1 2 Utility 3 | . 2 3 Weapon 4 | . 3 5 Tool/Special . | . . . Unused Backups 17 | . 4 13 Power 4 | . 2 2 Propulsion 4 | . . 4 Utility 6 | . 1 5 Weapon 3 | . 1 2 Tool/Special . | . . . Average Slot Usage (%) 98 | . 95 99 Engine 14 | . 14 14 Treads 27 | . 27 27 Storage 18 | . 24 15 Protection 7 | . . 12 Energy Gun 5 | . 13 . Ballistic Gun 18 | . 14 21 Slashing Weapon 4 | . . 6 Peak Build Rating 13 | 6 12 13 Average Rating 11 | 4 9 12 On Entrance 6 | . 6 12 Avg Prop Armor Cover (%) . | . . . Naked Turns . | . . . Heaviest Build 43 | 13 41 43 Greatest Support 40 | 40 40 40 Greatest Overweight (x) 1 | . 1 1 Average Overweight (x) . | . . . Largest Inventory Capacity 15 | 8 15 15 Average Capacity 14 | 6 13 15 Most Carried 15 | 2 13 15 Average Carried 12 | 1 9 14 Final Capacity 15 | 8 15 15 Final Carried 14 | 2 13 14 Class Distribution -------------------- 100% | Mutant Dominant Class ---------------- Mutant | -10/Materials Mutant | -10/Subcaves Resources | -11 -10 -10 ----------- Run | Yrd Mat Sub Matter Collected 950 | 211 339 400 Remotely . | . . . Salvage Created 1002 | . 545 457 Parts 51 | . 27 24 Haulers Intercepted 1 | . 1 . Recyclers Shooed 1 | . 1 . Parts Field Recycled . | . . . Retrieved Matter . | . . . Parts Self-Destructed 3 | . . 3 Prevented . | . . . Parts Restored . | . . . Kills | -11 -10 -10 ------- Run | Yrd Mat Sub Combat Hostiles Destroyed 27 | . 13 14 Guns 22 | . 9 13 AOE 5 | . 4 1 Classes Destroyed 9 | . 7 2 Worker 1 | . 1 . Hauler 1 | . 1 . Recycler 1 | . 1 . Operator 1 | . 1 . Watcher 1 | . 1 . Swarmer 6 | . 3 3 Grunt 11 | . 10 1 Sentry 1 | . . 1 Subdweller 9 | . . 9 Best Kill Streak 6 | . 6 3 Combat Bots Only 4 | . 4 3 Max Kills in Single Turn 3 | . 3 1 Gunslinging . | . . . Exploded 2 | . 2 1 Melee . | . . . Uniques/NPCs Destroyed . | . . . Combat | -11 -10 -10 -------- Run | Yrd Mat Sub Hostile Shots Fired 134 | . 64 70 Missed 30 | . 14 16 Hits 104 | . 50 54 Projectile 104 | . 50 54 Critical Strikes 2 | . . 2 Damage Taken 1452 | . 566 886 Core 251 | . 60 191 Absorbed by Shields . | . . . Core Remaining (%) 100 | 100 . . Volleys Fired 92 | . 46 46 Largest 2 | . 2 2 Hottest 73 | . 73 60 Shots Fired 176 | . 86 90 Gun 168 | . 80 88 Cannon . | . . . Launcher 8 | . 6 2 Special . | . . . Kinetic 129 | . 41 88 Thermal 39 | . 39 . Explosive 8 | . 6 2 Electromagnetic . | . . . Robot Hit Streak 16 | . 15 16 Robot Miss Streak 6 | . 4 6 Penetration Max . | . . . Secondary Targets 4 | . 3 1 Max Gunslinging Chain 1 | . 1 1 Shots Hit Robots 117 | . 59 58 Core Hits 53 | . 29 24 Critical Kills . | . . . Critical Parts Destroyed 1 | . . 1 Critical Strikes 5 | . 4 1 Burn 4 | . 4 . Destroy 1 | . . 1 Melee Attacks 14 | . . 14 Impact . | . . . Slashing 14 | . . 14 Piercing . | . . . Sneak Attacks . | . . . Combat Hostiles . | . . . Follow-up Attacks . | . . . Damage Inflicted 2330 | . 1269 1061 Guns 1747 | . 793 954 Cannons . | . . . Explosions 583 | . 476 107 Melee . | . . . Ramming . | . . . Kinetic 1371 | . 417 954 Thermal 376 | . 376 . Explosive 583 | . 476 107 Electromagnetic . | . . . Impact . | . . . Slashing . | . . . Piercing . | . . . Highest Corruption . | . . . Average Corruption . | . . . Corruption Purged . | . . . Corruption Blocked . | . . . Overload Shots . | . . . Overflow Damage 14 | . 14 . Projectiles . | . . . Explosions 14 | . 14 . Melee . | . . . Knockbacks . | . . . Impact . | . . . Kinetic . | . . . Secondary . | . . . Self-Inflicted Damage 14 | . 14 . Shots 2 | . 2 . Rammed . | . . . Targets Rammed . | . . . Kicked . | . . . Crushed . | . . . Highest Temperature 308 | . 308 258 Average Temperature 97 | . 90 158 Received Heat Transfer 674 | . 252 422 Effects 5 | . 5 . Energy Bleed 3 | . 3 . Interference 2 | . 2 . Siege Activations . | . . . Martial Activations . | . . . Shielding Activations . | . . . Robots Disrupted . | . . . Combat Hostiles . | . . . Robots Corrupted . | . . . Combat Hostiles . | . . . Parts Fried . | . . . Impact Corruptions . | . . . Robots Melted . | . . . Combat Hostiles . | . . . Parts Melted 3 | . 3 . Heat Transferred 1369 | . 1369 . Parts Sabotaged . | . . . Parts Stolen . | . . . Parts Stripped . | . . . Power Chain Reactions . | . . . Alert | -11 -10 -10 ------- Run | Yrd Mat Sub Maximum Alert Level . | . . . Low Security (%) 100 | 100 100 . Level 1 . | . . . Level 2 . | . . . Level 3 . | . . . Level 4 . | . . . Level 5 . | . . . High Security . | . . . Max Security . | . . . Peak Influence 181 | . 181 . Initial . | . . . Average 62 | . 65 . Influence Increases 480 | . 370 110 Destroy 0b10 Robot/C 360 | . 260 100 Destroy 0b10 Robot/NC 25 | . 25 . Destroy Leader 74 | . 64 10 Successful Hack 6 | . 6 . Destroy Structure 15 | . 15 . Influence Decreases 433 | . 244 189 Entered New Map 62 | . . 62 Time Decay 351 | . 234 117 Lost Part 20 | . 10 10 Squads Dispatched 3 | . 3 . Investigation 2 | . 2 . Extermination . | . . . Reinforcement 1 | . 1 . Assault . | . . . Garrison . | . . . Intercept . | . . . Searches Triggered . | . . . Construction Impeded . | . . . Haulers Reinforced . | . . . Active Scanning Responses . | . . . Cargo Convoy Interrupts . | . . . Stealth | -11 -10 -10 --------- Run | Yrd Mat Sub Distress Signals . | . . . Communications Jammed . | . . . Distress Signals . | . . . Times Spotted 31 | . 16 15 Peak Tracking Total 4 | . 4 3 Tactical Retreats . | . . . Traps | -11 -10 -10 ------- Run | Yrd Mat Sub Traps Triggered 1 | . 1 . Indirectly . | . . . Trap Hack Attempts . | . . . Triggered . | . . . Disarmed . | . . . Reprogrammed . | . . . Reused . | . . . Traps Extracted . | . . . Installed . | . . . Triggered . | . . . Machines | -11 -10 -10 ---------- Run | Yrd Mat Sub Machines Disabled . | . . . Max in Single Turn . | . . . Machines Repaired . | . . . Machines Dismantled . | . . . Machines Sabotaged . | . . . Overloaded Fab Kills . | . . . Hacking | -11 -10 -10 --------- Run | Yrd Mat Sub Machines Accessed 5 | . 4 1 Terminals 4 | . 4 . Fabricators . | . . . Repair Stations . | . . . Recycling Units . | . . . Scanalyzers . | . . . Garrison Access . | . . . Total Hacks 16 | . 12 4 Successful 8 | . 4 4 Failed 8 | . 8 . Catastrophic 1 | . 1 . Database Lockouts . | . . . Manual 12 | . 12 . Terminals 12 | . 12 . Fabricators . | . . . Repair Stations . | . . . Recycling Units . | . . . Scanalyzers . | . . . Garrison Access . | . . . Terminal Hacks 5 | . 1 4 Record 4 | . . 4 Robot Analysis 1 | . 1 . Fabricator Hacks . | . . . Repair Station Hacks . | . . . Recycling Unit Hacks . | . . . Scanalyzer . | . . . Garrison Access Hacks . | . . . Unauthorized Hacks 3 | . 3 . Terminals 3 | . 3 . Botnet 3 | . 3 . Fabricators . | . . . Repair Stations . | . . . Recycling Units . | . . . Scanalyzers . | . . . Garrison Access . | . . . Data Cores Recovered . | . . . Used . | . . . Hacking Detections 4 | . 4 . Full Trace Events 1 | . 1 . Feedback Events . | . . . Feedback Blocked . | . . . Robot Schematics Acquired . | . . . Robots Built . | . . . Authchips . | . . . Time . | . . . Total Robot Build Rating . | . . . Part Schematics Acquired . | . . . Parts Built . | . . . Authchips . | . . . Time . | . . . Total Part Build Rating . | . . . Part Studies Acquired . | . . . Parts Repaired . | . . . Time . | . . . Parts Recycled . | . . . Recycled Matter . | . . . Retrieved Matter . | . . . Retrieved Components . | . . . Parts Scanalyzed . | . . . Part Schematics Acquired . | . . . Parts Damaged . | . . . Bothacking | -11 -10 -10 ------------ Run | Yrd Mat Sub Used RIF Installer . | . . . Robots Hacked . | . . . Non-combat . | . . . Combat . | . . . Robot Hacks Applied . | . . . Relay Couplers Released . | . . . Fabnet Peak Effective % . | . . . Robots Rewired . | . . . Allies Hacked . | . . . Hacks Repelled . | . . . Allies | -11 -10 -10 -------- Run | Yrd Mat Sub Total Allies . | . . . Largest Group . | . . . Highest-Rated Group . | . . . Highest-Rated Ally . | . . . Total Orders . | . . . Ally Attacks . | . . . Total Damage . | . . . Kills . | . . . Allies Corrupted . | . . . Allies Melted . | . . . Intel | -11 -10 -10 ------- Run | Yrd Mat Sub Active Infowar (turns) . | . . . Robot Analysis Total 1 | . 1 . Derelict Logs Recovered . | . . . Drone Launches . | . . . Drone Recoveries . | . . . Exploration | -11 -10 -10 ------------- Run | Yrd Mat Sub Turns Passed 3184 | 62 1153 1969 Spaces Moved 1352 | 33 556 763 Core 1 | 1 . . Treads 1351 | 32 556 763 Legs . | . . . Wheels . | . . . Hover . | . . . Flight . | . . . Fastest Speed 50 | 50 160 160 Average Speed 203 | 156 169 229 Slowest Speed 240 | 160 240 240 Overloaded Moves . | . . . Propulsion Burnouts . | . . . Robots Hopped . | . . . Potential Cave-ins . | . . . Cave-ins Triggered . | . . . Exploration Rate (%) 42 | 3 82 42 Regions Visited 2 Branch Regions 1 Pre-discovered Areas . | . . . Known Exits Taken . | . . . Unknown Exits Taken 2 | 1 1 . Scrap Searched 4 | . . 4 Spaces Dug . | . . . Terrain Destroyed 29 | . 26 3 Melee . | . . . Projectile . | . . . AOE 29 | . 26 3 Terrain Rammed . | . . . Walls Destroyed . | . . . Machines Disabled . | . . . Actions | -11 -10 -10 --------- Run | Yrd Mat Sub Total 1600 | 40 687 873 Wait 75 | . 55 20 Move 1350 | 32 555 763 Hop . | . . . Pick Up 28 | 2 16 10 Fast Attach 10 | 6 4 . Attach 6 | . 1 5 Detach . | . . . Swap 12 | . 3 9 Drop 13 | . 7 6 Fire 92 | . 46 46 Melee 14 | . . 14 Ram . | . . . Kick . | . . . Crush . | . . . Escape Stasis . | . . . Rewire . | . . . Trap . | . . . Miscellaneous . | . . . Route ------- -11/Scrapyard -10/Materials (discovered 6 exits: [*Mat x3] / [*Min x2] / *Sub) -10/Subcaves (discovered 2 exits: [*Mat x2]) History --------- Turn | Location | Event 13 | -11/Scrapyard | Discovered new exit (range 15) 63 | -11/Scrapyard | Entered Materials 202 | -10/Materials | Discovered new exit (range 9) 310 | -10/Materials | Build established: Mutant 310 | -10/Materials | Discovered new exit (range 13) 485 | -10/Materials | Discovered new exit (range 11) 823 | -10/Materials | Discovered new exit (range 16) 893 | -10/Materials | Discovered new exit (range 16) 1199 | -10/Materials | Discovered new exit (range 6) 1216 | -10/Materials | Entered Subcaves 1327 | -10/Subcaves | Visited Clippyterm 1334 | -10/Subcaves | Learned Factory trap positions 1393 | -10/Subcaves | A swath of the cavern ceiling suddenly collapsed 1524 | -10/Subcaves | Core integrity fell below 50% 2135 | -10/Subcaves | Shifting Twisted Machinery released Battle Rifle 2135 | -10/Subcaves | Shifting Twisted Machinery released Flamer 2229 | -10/Subcaves | Discovered new exit (range 5) 2302 | -10/Subcaves | Core integrity fell below 20% 2384 | -10/Subcaves | A swath of the cavern ceiling suddenly collapsed 3028 | -10/Subcaves | Discovered new exit (range 6) 3185 | -10/Subcaves | Destroyed by S-10 Pest with Light Assault Rifle Last Messages --------------- A swath of the cavern ceiling suddenly collapses. 02622_ Searching scrap... 02622_ Found Battle Rifle. 02622_ Found 55 Matter. 02623_ Acquired 55 matter. 02624_ Searching scrap... 02624_ Found Sub. Optics. 02624_ Found Scrap Shield. 02624_ Found 41 Matter. 02625_ Acquired 15 matter. 02738_ ZN-JET(u) tweaks Twisted Machinery. 03028_ EXIT=FOUND 03158_ S-10 Pest destroyed. 03161_ S-10 Pest suffers critical hit (Destroy). 03161_ Destroyed Lgt. Ion Engine. 03162_ Flight Unit fries itself beyond repair. 03170_ Destroyed Flight Unit. 03176_ S-10 Pest destroyed. 03176_ Switching to secondary target: S-10 Pest. Map ----- +----------------------------------------------------+ | #####?# =%##########?????????????????????????????? | | # ### !!!## #?????????????????????????????? | | # & &## #??# ######??#####?????????????????? | | # != &% ##???# #### ####??????????????? | | # = #!&! ###### ## #??????????????? | | # ###! %## ### #??????????????? | | # ## ! #?# ##?????????????? | | # #### ## #?????????????? | | # ########### < #?????????????? | | # #??????## ##?????????????? | | ### #??????# ####??????????????? | | ??### #???#### ##?????????????????? | | # #??### ##??## #??????????????????? | | ###?### #???# ##??????????????????? | | ??### % #??# ##??????????????????? | | ??# #### # ### ##?????????????????? | | ??# ##?# ## ##????????????????? | | ??# % #?# ### ##???????????????? | | ??# #?#######?#### #???????????????? | | ??# ##????????????## ## #???????????????? | | ??# #??????????????## = #?###???????????????? | | ?## #????#??????????##% #???????????????????? | | ## #??? ### ????????#%s #???????????????????? | | # #### #???????# #???????????????????? | | # """# ??????## #???????????????????? | | # "### #??????## @ ##?###??????????????? | | # ##"# # ????# ## #??????????????? | | ""#"# ????# ## #??????????????? | | "### ????# #### ##??????????????? | | # ## #??????????????#### ##???????????????? | | # ### #???????# ????# #?## ##????????????????? | | # #?##?????## ???? ##?# #?????????????????? | | # #??????## ???? #?## ##?????????????????? | | # #??????# ???? ##?# ##??????????????????? | | ## #??????# ????? #?###???????????????????? | | ## ##??????# ????# #???????????????????????? | | # ###???? #????# #???????????????????????? | | # #???## #??### #???????????????????????? | | ## ##??# #??? #????????????????????????? | | ?## #??# #??? #?????????????????????????? | | ??# #???# ##### ##????????????????????????? | | ??## #??## ### # ##???????????????????????? | | ???# ##### ##??????????????????????? | | ???# ##?????????????????????? | | ???# # ## #????????????? | | #?## ## #????????????????? | | ### ### ### #????????????????? | | ## ##### ##### ##??? #??????###?????? | | # #???## ##??# #???? #?????# ##????? | | ## # #????###???# ####????# #?#### #????? | +----------------------------------------------------+ Best States ------------- Heat Dissipation 35 Energy Generation 12 Energy Capacity 265 Matter Stores 300 Matter Capacity 300 Sight Range 16 Terrain Scan Density 85 Armor Coverage 150 Evasion (%) 40 Recoil Reduction 2 Item Schematics ----------------- None Robot Schematics ------------------ None Fabricated ------------ Nothing Repaired ---------- Nothing Studied --------- None Alien Tech Used ----------------- None Achievements -------------- None Challenges ------------ None Game ------ Seed AlphaHeatPurifier Manual? 0 Play Time 00:11:20 Cumulative 184.6 hours Start 2026.08.06 @ 21:32:33 End 2026.08.06 @ 21:43:09 Sessions 1 Manual Loads 0 Difficulty Rogue Special Mode None Game No. 201 Rogue 147 Adventurer 54 Explorer 0 Win Type - Total 9 Types 5/0/1/1/0/0/0/1/0/1 Lore% 68 Gallery% 59 Achievement% 56 Wizard Run 0 Options --------- Layout 1 ASCII 0 Keyboard 0 Movement Mouse Keybinds 1 Fullscreen 2 Font 32/Tamsyn Map View 50x35 Zoom Use 0% Tactical HUD 1 Map Filters NONE Filters NONE Steam 1 RUN: adfcc333-49e1-4910-a34b-afd0bed8a791